fUST/lending_fUST_20251001
["ID","MTS","AMOUNT","RATE_DAILY","PERIOD"]
[388704569,1759323052856,-500.0,0.00021917,2]
[388704570,1759323052865,-566.58,0.00021917,2]
[388704571,1759323052874,-500.0,0.00021917,2]
[388704572,1759323052883,-374.1384396,0.00021917,2]
[388704573,1759323052893,-500.0,0.00021917,2]
[388704574,1759323052902,-500.0,0.00021917,2]
[388704575,1759323052912,-500.0,0.00021917,2]
[388704576,1759323052922,-500.0,0.00021917,2]
[388704577,1759323052932,-647.03,0.00021917,2]
[388704578,1759323052941,-500.0,0.00021917,2]
[388704579,1759323052950,-1310.81,0.00021917,2]
[388704580,1759323052959,-500.0,0.00021917,2]
[388704581,1759323052968,-500.0,0.00021917,2]
[388704582,1759323052977,-506.13,0.00021917,2]
[388704583,1759323052987,-500.0,0.00021917,2]
[388704584,1759323052995,-607.74,0.00021917,2]
[388704585,1759323053005,-641.35,0.00021917,2]
[388704586,1759323053014,-500.0,0.00021917,2]
[388704587,1759323053023,-3514.37,0.00021917,2]
[388704588,1759323053032,-670.39,0.00021917,2]
[388704589,1759323053041,-3132.87,0.00021917,2]
[388704590,1759323053051,-486.77100288,0.00021917,2]
[388704591,1759323053060,-7873.76,0.00022,2]
[388704592,1759323053069,-168.0,0.00022038,2]
[388704593,1759323053078,-200.07885933,0.00022051,7]
[388704594,1759323053088,-168.0,0.00022051,2]
[388704595,1759323053097,-1000.0,0.00022074,2]
[388704596,1759323053106,-972.702,0.00022092,2]
[388704597,1759323053115,-168.0,0.00022103,2]
[388704598,1759323053124,-500.0,0.00022121,2]
[388704599,1759323053134,-168.0,0.00022129,2]
[388704600,1759323053143,-168.0,0.00022138,2]
[388704601,1759323053152,-537.7,0.00022191,2]
[388704602,1759323053162,-500.0,0.00022191,2]
[388704603,1759323053172,-500.0,0.00022191,2]
[388704604,1759323053181,-581.29,0.00022191,2]
[388704605,1759323053191,-500.0,0.00022191,2]
[388704606,1759323053200,-500.0,0.00022191,2]
[388704607,1759323053209,-437.44145671,0.00022191,2]
[388704608,1759323053475,-297.19854329,0.00022191,2]
[388704609,1759323053484,-535.25,0.00022191,2]
[388704610,1759323053493,-500.0,0.00022191,2]
[388704611,1759323053503,-260.29369683,0.00022191,2]
[388704612,1759323053512,-611.26,0.00022191,2]
[388704613,1759323053521,-509.81,0.00022191,2]
[388704614,1759323053530,-500.0,0.00022191,2]
[388704615,1759323053540,-500.0,0.00022191,2]
[388704616,1759323053549,-500.0,0.00022191,2]
[388704617,1759323053559,-500.0,0.00022191,2]
[388704618,1759323053569,-1249.75,0.00022191,2]
[388704619,1759323053579,-921.83,0.00022191,2]
[388704620,1759323053588,-920.65,0.00022191,2]
[388704621,1759323053598,-500.0,0.00022191,2]
[388704622,1759323053607,-566.58,0.00022191,2]
[388704623,1759323053616,-500.0,0.00022191,2]
[388704624,1759323053625,-500.0,0.00022191,2]
[388704625,1759323053634,-500.0,0.00022191,2]
[388704626,1759323053643,-500.0,0.00022191,2]
[388704627,1759323053653,-500.0,0.00022191,2]
[388704628,1759323053663,-647.03,0.00022191,2]
[388704629,1759323053672,-500.0,0.00022191,2]
[388704630,1759323053680,-1310.81,0.00022191,2]
[388704631,1759323053689,-500.0,0.00022191,2]
[388704632,1759323053699,-209.57605364,0.00022191,2]
[388704633,1759323053708,-506.13,0.00022191,2]
[388704634,1759323053717,-500.0,0.00022191,2]
[388704635,1759323053726,-607.74,0.00022191,2]
[388704636,1759323053736,-641.35,0.00022191,2]
[388704637,1759323053745,-500.0,0.00022191,2]
[388704638,1759323053754,-3514.37,0.00022191,2]
[388704639,1759323053763,-670.39,0.00022191,2]
[388704640,1759323053774,-3132.87,0.00022191,2]
[388704641,1759323053783,-500.0,0.00022193,2]
[388704642,1759323053792,-500.0,0.00022193,2]
[388704643,1759323053802,-500.0,0.00022193,2]
[388704644,1759323053811,-2334.13502631,0.00022212,2]
[388704645,1759323053820,-160.0,0.00022248,2]
[388704646,1759323053830,-160.0,0.00022249,2]
[388704647,1759323053839,-460.0,0.00022314,2]
[388704648,1759323053848,-168.0,0.0002236,2]
[388704649,1759323053858,-166.0,0.00022365,2]
[388704650,1759323053867,-400.0,0.00022461,2]
[388704651,1759323053877,-537.7,0.00022465,2]
[388704652,1759323053886,-500.0,0.00022465,2]
[388704653,1759323053895,-500.0,0.00022465,2]
[388704654,1759323053904,-581.29,0.00022465,2]
[388704655,1759323053914,-500.0,0.00022465,2]
[388704656,1759323053923,-734.64,0.00022465,2]
[388704657,1759323053932,-535.25,0.00022465,2]
[388704658,1759323053942,-451.61198279,0.00022465,2]
[388704659,1759323053951,-611.26,0.00022465,2]
[388704660,1759323053960,-509.81,0.00022465,2]
[388704661,1759323053969,-500.0,0.00022465,2]
[388704662,1759323053979,-500.0,0.00022465,2]
[388704663,1759323053988,-500.0,0.00022465,2]
[388704664,1759323053997,-291.51990042,0.00022465,2]
[388704665,1759323054007,-1249.75,0.00022465,2]
[388704666,1759323054016,-921.83,0.00022465,2]
[388704667,1759323054026,-920.65,0.00022465,2]
[388704668,1759323054035,-500.0,0.00022465,2]
[388704669,1759323054044,-566.58,0.00022465,2]
[388704670,1759323054053,-500.0,0.00022465,2]
[388704671,1759323054063,-500.0,0.00022465,2]
[388704672,1759323054072,-500.0,0.00022465,2]
[388704673,1759323054082,-500.0,0.00022465,2]
[388704674,1759323054091,-500.0,0.00022465,2]
[388704675,1759323054101,-647.03,0.00022465,2]
[388704676,1759323054110,-500.0,0.00022465,2]
[388704677,1759323054120,-1310.81,0.00022465,2]
[388704678,1759323054130,-500.0,0.00022465,2]
[388704679,1759323054139,-500.0,0.00022465,2]
[388704680,1759323054149,-506.13,0.00022465,2]
[388704681,1759323054158,-607.74,0.00022465,2]
[388704682,1759323054167,-641.35,0.00022465,2]
[388704683,1759323054177,-500.0,0.00022465,2]
[388704684,1759323054187,-3514.37,0.00022465,2]
[388704685,1759323054196,-670.39,0.00022465,2]
[388704686,1759323054205,-3132.87,0.00022465,2]
[388704687,1759323054219,-168.0,0.00022611,2]
[388704688,1759323054228,-168.0,0.00022647,2]
[388704689,1759323054238,-168.0,0.00022665,2]
[388704690,1759323054247,-1000.0,0.00022669,2]
[388704691,1759323054258,-537.7,0.00022739,2]
[388704692,1759323054267,-500.0,0.00022739,2]
[388704693,1759323054276,-500.0,0.00022739,2]
[388704694,1759323054285,-581.29,0.00022739,2]
[388704695,1759323054297,-500.0,0.00022739,2]
[388704696,1759323054306,-734.64,0.00022739,2]
[388704697,1759323054315,-535.25,0.00022739,2]
[388704698,1759323054325,-611.26,0.00022739,2]
[388704699,1759323054334,-509.81,0.00022739,2]
[388704700,1759323054344,-500.0,0.00022739,2]
[388704701,1759323054355,-500.0,0.00022739,2]
[388704702,1759323054364,-500.0,0.00022739,2]
[388704703,1759323054374,-1249.75,0.00022739,2]
[388704704,1759323054383,-921.83,0.00022739,2]
[388704705,1759323054393,-920.65,0.00022739,2]
[388704706,1759323054402,-500.0,0.00022739,2]
[388704707,1759323054411,-566.58,0.00022739,2]
[388704708,1759323054421,-500.0,0.00022739,2]
[388704709,1759323054430,-500.0,0.00022739,2]
[388704710,1759323054439,-500.0,0.00022739,2]
[388704711,1759323054448,-369.69407469,0.00022739,2]
[388704712,1759323054459,-548.03199243,0.00022739,2]
[388704713,1759323054468,-647.03,0.00022739,2]
[388704714,1759323054477,-500.0,0.00022739,2]
[388704715,1759323054487,-1310.81,0.00022739,2]
[388704716,1759323054497,-500.0,0.00022739,2]
[388704717,1759323054506,-497.66630704,0.00022739,2]
[388704718,1759323054515,-506.13,0.00022739,2]
[388704719,1759323054525,-607.74,0.00022739,2]
[388704720,1759323054534,-641.35,0.00022739,2]
[388704721,1759323054544,-500.0,0.00022739,2]
[388704722,1759323054553,-3514.37,0.00022739,2]
[388704723,1759323054563,-670.39,0.00022739,2]
[388704724,1759323054572,-3132.87,0.00022739,2]
[388704725,1759323054581,-1000.0,0.00022741,2]
[388704726,1759323054591,-1000.0,0.00022741,2]
[388704727,1759323054599,-1000.0,0.00022741,2]
[388704728,1759323054608,-587.0,0.00022774,2]
[388704729,1759323054618,-560.0,0.00022862,2]
[388704730,1759323054627,-166.0,0.00022913,2]
[388704731,1759323054637,-2351.0,0.00022995,2]
[388704732,1759323054646,-160.0,0.00023,2]
[388704733,1759323054655,-62576.43868365,0.00023,2]
[388704734,1759323054665,-537.7,0.00023013,2]
[388704735,1759323054675,-500.0,0.00023013,2]
[388704736,1759323054684,-500.0,0.00023013,2]
[388704737,1759323054693,-581.29,0.00023013,2]
[388704738,1759323054703,-500.0,0.00023013,2]
[388704739,1759323054712,-734.64,0.00023013,2]
[388704740,1759323054723,-535.25,0.00023013,2]
[388704741,1759323054732,-611.26,0.00023013,2]
[388704742,1759323054741,-509.81,0.00023013,2]
[388704743,1759323054751,-500.0,0.00023013,2]
[388704744,1759323054759,-500.0,0.00023013,2]
[388704745,1759323054769,-500.0,0.00023013,2]
[388704746,1759323054778,-1249.75,0.00023013,2]
[388704747,1759323054787,-921.83,0.00023013,2]
[388704748,1759323054796,-920.65,0.00023013,2]
[388704749,1759323054806,-500.0,0.00023013,2]
[388704750,1759323054815,-566.58,0.00023013,2]
[388704751,1759323054824,-500.0,0.00023013,2]
[388704752,1759323054833,-500.0,0.00023013,2]
[388704753,1759323054843,-500.0,0.00023013,2]
[388704754,1759323054852,-647.03,0.00023013,2]
[388704755,1759323054862,-500.0,0.00023013,2]
[388704756,1759323054871,-1310.81,0.00023013,2]
[388704757,1759323054881,-500.0,0.00023013,2]
[388704758,1759323054891,-506.13,0.00023013,2]
[388704759,1759323054901,-607.74,0.00023013,2]
[388704760,1759323054911,-641.35,0.00023013,2]
[388704761,1759323054922,-500.0,0.00023013,2]
[388704762,1759323054932,-3514.37,0.00023013,2]
[388704763,1759323054941,-670.39,0.00023013,2]
[388704764,1759323054950,-3132.87,0.00023013,2]
[388704765,1759323054960,-168.0,0.00023124,2]
[388704766,1759323054969,-537.7,0.00023287,2]
[388704767,1759323054978,-500.0,0.00023287,2]
[388704768,1759323054987,-500.0,0.00023287,2]
[388704769,1759323054996,-581.29,0.00023287,2]
[388704770,1759323055005,-502.05371853,0.00023287,2]
[388704771,1759323055014,-500.0,0.00023287,2]
[388704772,1759323055023,-734.64,0.00023287,2]
[388704773,1759323055032,-535.25,0.00023287,2]
[388704774,1759323055041,-611.26,0.00023287,2]
[388704775,1759323055052,-509.81,0.00023287,2]
[388704776,1759323055062,-500.0,0.00023287,2]
[388704777,1759323055072,-500.0,0.00023287,2]
[388704778,1759323055081,-500.0,0.00023287,2]
[388704779,1759323055091,-1249.75,0.00023287,2]
[388704780,1759323055100,-921.83,0.00023287,2]
[388704781,1759323055109,-920.65,0.00023287,2]
[388704782,1759323055118,-500.0,0.00023287,2]
[388704783,1759323055128,-566.58,0.00023287,2]
[388704784,1759323055137,-331.23625588,0.00023287,2]
[388704785,1759323055146,-500.0,0.00023287,2]
[388704786,1759323055155,-500.0,0.00023287,2]
[388704787,1759323055280,-647.03,0.00023287,2]
[388704788,1759323055292,-500.0,0.00023287,2]
[388704789,1759323055306,-1310.81,0.00023287,2]
[388704790,1759323055316,-500.0,0.00023287,2]
[388704791,1759323055325,-506.13,0.00023287,2]
[388704792,1759323055335,-607.74,0.00023287,2]
[388704793,1759323055345,-641.35,0.00023287,2]
[388704794,1759323055354,-500.0,0.00023287,2]
[388704795,1759323055365,-3514.37,0.00023287,2]
[388704796,1759323055374,-670.39,0.00023287,2]
[388704797,1759323055383,-3132.87,0.00023287,2]
[388704798,1759323055392,-1500.0,0.00023289,2]
[388704799,1759323055402,-168.0,0.00023362,2]
[388704800,1759323055411,-660.0,0.0002341,2]
[388704801,1759323055422,-280.0,0.00023452,10]
[388704802,1759323055431,-166.0,0.00023461,2]
[388704803,1759323055440,-972.702,0.00023461,2]
[388704804,1759323055449,-168.0,0.00023463,2]
[388704805,1759323055458,-7873.76,0.000235,2]
[388704806,1759323055467,-537.7,0.00023561,2]
[388704807,1759323055478,-500.0,0.00023561,2]
[388704808,1759323055487,-500.0,0.00023561,2]
[388704809,1759323055496,-581.29,0.00023561,2]
[388704810,1759323055505,-500.0,0.00023561,2]
[388704811,1759323055515,-734.64,0.00023561,2]
[388704812,1759323055525,-535.25,0.00023561,2]
[388704813,1759323055535,-611.26,0.00023561,2]
[388704814,1759323055544,-509.81,0.00023561,2]
[388704815,1759323055554,-500.0,0.00023561,2]
[388704816,1759323055563,-500.0,0.00023561,2]
[388704817,1759323055573,-500.0,0.00023561,2]
[388704818,1759323055582,-1249.75,0.00023561,2]
[388704819,1759323055591,-921.83,0.00023561,2]
[388704820,1759323055601,-920.65,0.00023561,2]
[388704821,1759323055610,-500.0,0.00023561,2]
[388704822,1759323055619,-566.58,0.00023561,2]
[388704823,1759323055628,-500.0,0.00023561,2]
[388704824,1759323055637,-500.0,0.00023561,2]
[388704825,1759323055646,-647.03,0.00023561,2]
[388704826,1759323055656,-254.79723587,0.00023561,2]
[388704827,1759323055665,-1310.81,0.00023561,2]
[388704828,1759323055674,-500.0,0.00023561,2]
[388704829,1759323055683,-506.13,0.00023561,2]
[388704830,1759323055693,-607.74,0.00023561,2]
[388704831,1759323055702,-641.35,0.00023561,2]
[388704832,1759323055711,-500.0,0.00023561,2]
[388704833,1759323055720,-3514.37,0.00023561,2]
[388704834,1759323055729,-670.39,0.00023561,2]
[388704835,1759323055738,-3132.87,0.00023561,2]
[388704836,1759323055747,-168.0,0.00023594,2]
[388704837,1759323055757,-168.0,0.00023657,2]
[388704838,1759323055765,-4000.0,0.00023696,4]
[388704839,1759323055774,-155.367458,0.00023755,3]
[388704840,1759323055784,-537.7,0.00023835,2]
[388704841,1759323055793,-252.8373235,0.00023835,2]
[388704842,1759323055802,-500.0,0.00023835,2]
[388704843,1759323055812,-581.29,0.00023835,2]
[388704844,1759323055821,-500.0,0.00023835,2]
[388704845,1759323055830,-734.64,0.00023835,2]
[388704846,1759323055839,-535.25,0.00023835,2]
[388704847,1759323055848,-611.26,0.00023835,2]
[388704848,1759323055858,-509.81,0.00023835,2]
[388704849,1759323055867,-418.60504823,0.00023835,2]
[388704850,1759323055876,-500.0,0.00023835,2]
[388704851,1759323055885,-500.0,0.00023835,2]
[388704852,1759323055894,-1249.75,0.00023835,2]
[388704853,1759323055904,-921.83,0.00023835,2]
[388704854,1759323055913,-920.65,0.00023835,2]
[388704855,1759323055923,-500.0,0.00023835,2]
[388704856,1759323055932,-566.58,0.00023835,2]
[388704857,1759323055942,-500.0,0.00023835,2]
[388704858,1759323055951,-500.0,0.00023835,2]
[388704859,1759323055960,-647.03,0.00023835,2]
[388704860,1759323055969,-1310.81,0.00023835,2]
[388704861,1759323055979,-500.0,0.00023835,2]
[388704862,1759323055988,-506.13,0.00023835,2]
[388704863,1759323055998,-607.74,0.00023835,2]
[388704864,1759323056007,-641.35,0.00023835,2]
[388704865,1759323056016,-500.0,0.00023835,2]
[388704866,1759323056025,-3514.37,0.00023835,2]
[388704867,1759323056034,-670.39,0.00023835,2]
[388704868,1759323056043,-3132.87,0.00023835,2]
[388704869,1759323056052,-1211.92579495,0.00023837,2]
[388704870,1759323074106,200.0,0.00033803,120]
[388704871,1759323142253,157.0,0.00024,120]
[388704872,1759323143679,157.0,0.000269,120]
[388704873,1759323186760,10000.01,0.00019078,2]
[388704874,1759323186799,10000.01,0.00019078,2]
[388704875,1759323186826,5383.14228322,0.00019078,2]
[388704876,1759323259937,933.81401307,0.00019077,2]
[388704877,1759323271903,949.8471009,0.00018638,2]
[388704880,1759323334838,193.0,0.00024077,120]
[388704881,1759323336106,193.0,0.00025281,120]
[388704882,1759323337644,193.0,0.00026545,120]
[388704883,1759323339132,193.0,0.00027873,120]
[388704884,1759323376086,200.0,0.00033797,120]
[388704885,1759323391567,274.40797665,0.00019077,2]
[388704887,1759323467394,482.0865675,0.00018315,2]
[388704888,1759323525499,198.0,0.00027,120]
[388704889,1759323527896,182.9386511,0.00019078,2]
[388704893,1759323634369,165.0,0.0002416,120]
[388704894,1759323635715,165.0,0.00025368,120]
[388704896,1759323637054,165.0,0.00026637,120]
[388704897,1759323638489,165.0,0.00027969,120]
[388704906,1759323778038,200.0,0.00033759,120]
[388704911,1759323798118,200.0,0.0001652,2]
[388705003,1759323861652,200.0,0.0001652,2]
[388705005,1759323925678,200.0,0.0001652,2]
[388705006,1759323931471,166.0,0.00024237,120]
[388705007,1759323932739,166.0,0.00025449,120]
[388705008,1759323934010,166.0,0.00026722,120]
[388705009,1759323946693,9800.01,0.0001831,2]
[388705010,1759323946726,8249.6810569,0.0001831,2]
[388705011,1759323972236,200.0,0.00033761,120]
[388705012,1759323989664,200.0,0.0001652,2]
[388705013,1759323995789,1550.3289431,0.00019078,2]
[388705014,1759323995814,8449.6810569,0.00019078,2]
[388705015,1759324053726,200.0,0.0001652,2]
[388705016,1759324099804,165.250849,0.00018246,2]
[388705017,1759324117327,200.0,0.0001652,2]
[388705018,1759324137525,985.0780941,0.00019078,2]
[388705019,1759324137548,9014.9319059,0.00019078,2]
[388705021,1759324180134,200.0,0.0001652,2]
[388705066,1759324232334,-379.19749853,0.00019168,3]
[388705073,1759324232730,-202.21250147,0.00019168,3]
[388705074,1759324232739,-290.7,0.00019168,3]
[388705075,1759324232749,-290.7,0.00019168,3]
[388705076,1759324232758,-240.25742884,0.00019175,2]
[388705077,1759324232768,-500.0,0.00019175,2]
[388705078,1759324232778,-500.0,0.00019175,2]
[388705079,1759324232787,-1200.0,0.00019175,2]
[388705080,1759324232797,-300.0,0.00019175,2]
[388705082,1759324232806,-300.0,0.00019175,2]
[388705083,1759324232816,-1200.0,0.00019175,2]
[388705085,1759324232826,-10495.65678202,0.00019176,2]
[388705094,1759324238249,-500.0,0.00019175,2]
[388705095,1759324238259,-38.6149541,0.00019175,2]
[388705096,1759324238304,-461.3850459,0.00019175,2]
[388705097,1759324238313,-500.0,0.00019175,2]
[388705098,1759324238322,-500.0,0.00019175,2]
[388705099,1759324238332,-144.45308082,0.00019175,2]
[388705100,1759324238361,-355.54691918,0.00019175,2]
[388705101,1759324238371,-500.0,0.00019175,2]
[388705102,1759324238381,-500.0,0.00019175,2]
[388705103,1759324238391,-500.0,0.00019175,2]
[388705104,1759324238400,-500.0,0.00019175,2]
[388705105,1759324238411,-651.77012183,0.00019175,2]
[388705106,1759324238420,-507.63990819,0.00019175,2]
[388705107,1759324238429,-500.0,0.00019175,2]
[388705108,1759324238439,-500.0,0.00019175,2]
[388705109,1759324238448,-500.0,0.00019175,2]
[388705110,1759324238457,-500.0,0.00019175,2]
[388705111,1759324238467,-458.23520672,0.00019175,2]
[388705112,1759324238475,-375.82072475,0.00019175,2]
[388705113,1759324238485,-189.20414004,0.00019175,2]
[388705114,1759324238494,-500.0,0.00019175,2]
[388705115,1759324238505,-355.64977751,0.00019175,2]
[388705116,1759324238515,-39504.34321798,0.00019176,2]
[388705117,1759324238524,-500.0,0.00019178,2]
[388705118,1759324238533,-500.0,0.00019178,2]
[388705119,1759324238543,-500.0,0.00019178,2]
[388705120,1759324238552,-644.85688678,0.00019178,2]
[388705121,1759324238562,-500.0,0.00019178,2]
[388705122,1759324238571,-500.0,0.00019178,2]
[388705123,1759324238581,-482.11356706,0.00019178,2]
[388705124,1759324238591,-602.75,0.00019178,2]
[388705125,1759324238600,-500.0,0.00019178,2]
[388705126,1759324238610,-500.0,0.00019178,2]
[388705127,1759324238620,-500.0,0.00019178,2]
[388705128,1759324238630,-480.0,0.00019178,2]
[388705129,1759324238642,-500.0,0.00019178,2]
[388705130,1759324238651,-500.0,0.00019178,2]
[388705131,1759324238661,-480.0,0.00019178,2]
[388705132,1759324238672,-480.0,0.00019178,2]
[388705133,1759324238682,-480.0,0.00019178,2]
[388705134,1759324238691,-480.0,0.00019178,2]
[388705135,1759324238701,-500.0,0.00019178,2]
[388705136,1759324238710,-500.0,0.00019178,2]
[388705137,1759324238722,-480.0,0.00019178,2]
[388705138,1759324238731,-500.0,0.00019178,2]
[388705139,1759324238740,-500.0,0.00019178,2]
[388705140,1759324238750,-480.0,0.00019178,2]
[388705141,1759324238759,-500.0,0.00019178,2]
[388705142,1759324238770,-500.0,0.00019178,2]
[388705143,1759324238779,-500.0,0.00019178,2]
[388705144,1759324238789,-500.0,0.00019178,2]
[388705145,1759324238799,-500.0,0.00019178,2]
[388705146,1759324238809,-333.07984678,0.00019178,2]
[388705147,1759324238818,-484.73301845,0.00019178,2]
[388705148,1759324238828,-500.0,0.00019178,2]
[388705149,1759324238838,-482.97889744,0.00019178,2]
[388705150,1759324238847,-624.66,0.00019178,2]
[388705151,1759324238858,-407.78076729,0.00019178,2]
[388705152,1759324238871,-94.48520865,0.00019178,2]
[388705153,1759324238881,-570.63,0.00019178,2]
[388705154,1759324238891,-500.0,0.00019178,2]
[388705155,1759324238901,-480.0,0.00019178,2]
[388705156,1759324238911,-500.0,0.00019178,2]
[388705157,1759324238920,-500.0,0.00019178,2]
[388705158,1759324238930,-500.0,0.00019178,2]
[388705159,1759324238940,-635.29,0.00019178,2]
[388705160,1759324238950,-500.0,0.00019178,2]
[388705161,1759324238960,-480.0,0.00019178,2]
[388705162,1759324238970,-534.81,0.00019178,2]
[388705163,1759324238979,-480.0,0.00019178,2]
[388705164,1759324238989,-480.0,0.00019178,2]
[388705165,1759324238998,-344.53714551,0.00019178,2]
[388705166,1759324239008,-500.0,0.00019178,2]
[388705167,1759324239018,-480.0,0.00019178,2]
[388705168,1759324239028,-480.0,0.00019178,2]
[388705169,1759324239038,-480.0,0.00019178,2]
[388705170,1759324239047,-296.18186812,0.00019178,2]
[388705171,1759324239057,-500.0,0.00019178,2]
[388705172,1759324239066,-480.0,0.00019178,2]
[388705173,1759324239076,-480.0,0.00019178,2]
[388705174,1759324239086,-471.49552937,0.00019178,2]
[388705175,1759324239095,-480.0,0.00019178,2]
[388705176,1759324239105,-480.0,0.00019178,2]
[388705177,1759324239115,-500.0,0.00019178,2]
[388705178,1759324239125,-480.0,0.00019178,2]
[388705179,1759324239135,-480.0,0.00019178,2]
[388705180,1759324239144,-500.0,0.00019178,2]
[388705181,1759324239154,-582.49,0.00019178,2]
[388705182,1759324239164,-500.0,0.00019178,2]
[388705183,1759324239174,-480.0,0.00019178,2]
[388705184,1759324239184,-500.0,0.00019178,2]
[388705185,1759324239194,-480.0,0.00019178,2]
[388705186,1759324239204,-500.0,0.00019178,2]
[388705187,1759324239214,-500.0,0.00019178,2]
[388705188,1759324239223,-500.0,0.00019178,2]
[388705189,1759324239233,-500.0,0.00019178,2]
[388705190,1759324239242,-247.28,0.00019178,2]
[388705191,1759324239252,-642.76,0.00019178,2]
[388705192,1759324239261,-501.59,0.00019178,2]
[388705193,1759324239270,-500.0,0.00019178,2]
[388705194,1759324239279,-500.0,0.00019178,2]
[388705195,1759324239288,-480.0,0.00019178,2]
[388705196,1759324239298,-500.0,0.00019178,2]
[388705197,1759324239307,-500.0,0.00019178,2]
[388705198,1759324239316,-500.0,0.00019178,2]
[388705199,1759324239324,-500.0,0.00019178,2]
[388705200,1759324239333,-500.0,0.00019178,2]
[388705201,1759324239342,-500.0,0.00019178,2]
[388705202,1759324239351,-480.0,0.00019178,2]
[388705203,1759324239360,-480.0,0.00019178,2]
[388705204,1759324239369,-228.03,0.00019178,2]
[388705205,1759324239378,-500.0,0.00019178,2]
[388705206,1759324239387,-257.92269857,0.00019178,2]
[388705207,1759324239396,-480.0,0.00019178,2]
[388705208,1759324239413,-617.87,0.00019178,2]
[388705209,1759324239424,-312.56603976,0.00019178,2]
[388705210,1759324239433,-480.0,0.00019178,2]
[388705211,1759324239443,-500.0,0.00019178,2]
[388705212,1759324239452,-500.0,0.00019178,2]
[388705213,1759324239461,-480.0,0.00019178,2]
[388705214,1759324239471,-579.57403187,0.00019178,2]
[388705215,1759324239480,-500.0,0.00019178,2]
[388705216,1759324239490,-500.0,0.00019178,2]
[388705217,1759324239500,-500.0,0.00019178,2]
[388705218,1759324239510,-480.0,0.00019178,2]
[388705219,1759324239519,-500.0,0.00019178,2]
[388705220,1759324239528,-500.0,0.00019178,2]
[388705221,1759324239538,-500.0,0.00019178,2]
[388705222,1759324239547,-500.0,0.00019178,2]
[388705223,1759324239557,-500.0,0.00019178,2]
[388705224,1759324239567,-500.0,0.00019178,2]
[388705225,1759324239576,-482.44,0.00019178,2]
[388705226,1759324239585,-480.0,0.00019178,2]
[388705227,1759324239595,-171.09155418,0.00019178,2]
[388705228,1759324239605,-582.75,0.00019178,2]
[388705229,1759324239614,-500.0,0.00019178,2]
[388705230,1759324239627,-480.0,0.00019178,2]
[388705231,1759324239638,-506.42,0.00019178,2]
[388705232,1759324239647,-500.0,0.00019178,2]
[388705233,1759324239657,-500.0,0.00019178,2]
[388705234,1759324239666,-500.0,0.00019178,2]
[388705235,1759324239677,-500.0,0.00019178,2]
[388705236,1759324239687,-74.42426797,0.00019178,2]
[388705242,1759324240234,-425.57573203,0.00019178,2]
[388705243,1759324240244,-500.0,0.00019178,2]
[388705244,1759324240254,-500.0,0.00019178,2]
[388705246,1759324240264,-500.0,0.00019178,2]